bitfinex/quotes_SOLUSD_20241117
["timestamp","ask_amount","ask_price","bid_price","bid_amount"]
[1731867666991,0.09367462,232.68,232.6,10.62252138]
[1731867667610,4.39147462,232.68,232.6,10.62252138]
[1731867669301,0.09367462,232.66,232.56,15.0497]
[1731867669506,0.09367462,232.66,232.58,10.62252138]
[1731867669719,0.09367462,232.64,232.58,10.62252138]
[1731867670612,10.62252138,232.67,232.58,10.62252138]
[1731867670811,4.2979,232.67,232.6,10.62252138]
[1731867671055,0.09367462,232.66,232.6,10.62252138]
[1731867672096,0.09367462,232.66,232.62,10.62252138]
[1731867672728,28.41923862,232.68,232.62,10.62252138]
[1731867672899,4.51686462,232.68,232.62,10.62252138]
[1731867673106,10.74801138,232.67,232.6,10.62252138]
[1731867673399,0.12549,232.66,232.6,10.62252138]
[1731867673619,0.09367462,232.65,232.6,10.62252138]
[1731867674121,0.09367462,232.63,232.6,10.62252138]
[1731867674419,0.21916462,232.63,232.6,10.62252138]
[1731867675998,4.51786462,232.63,232.6,10.62252138]
[1731867677818,10.62252138,232.71,232.62,10.62252138]
[1731867678118,10.716196,232.69,232.62,10.62252138]
[1731867678992,0.09367462,232.67,232.62,10.62252138]
[1731867679196,0.21916462,232.67,232.62,10.62252138]
[1731867679613,0.21916462,232.67,232.62,10.12252138]
[1731867679922,20.0,232.7,232.64,10.62252138]
[1731867679923,4.2974,232.7,232.64,10.62252138]
[1731867680103,4.2974,232.7,232.66,10.62252138]
[1731867680414,20.7447,232.73,232.66,10.62252138]
[1731867680799,0.09367462,232.72,232.66,10.62252138]
[1731867681002,0.09367462,232.7,232.64,10.62252138]
[1731867681340,0.09367462,232.68,232.61,10.62252138]
[1731867681821,0.21916462,232.68,232.61,10.62252138]
[1731867682223,0.12549,232.67,232.61,10.62252138]
[1731867682408,0.09367462,232.66,232.61,10.62252138]
[1731867682597,0.09367462,232.66,232.59,10.62252138]
[1731867682799,0.09367462,232.66,232.55,15.0504]
[1731867683000,0.09367462,232.66,232.52,6.5447]
[1731867683001,0.09367462,232.58,232.52,10.62252138]
[1731867683215,10.62252138,232.57,232.49,0.4779129]
[1731867683426,0.09367462,232.56,232.49,11.10043428]
[1731867684001,0.09367462,232.56,232.49,10.60043428]
[1731867684424,4.39367462,232.56,232.49,10.60043428]
[1731867685207,4.3,232.56,232.49,10.60043428]
[1731867686125,0.21916462,232.55,232.49,10.60043428]
[1731867686330,10.841686,232.55,232.47,10.62252138]
[1731867686622,4.3003,232.54,232.47,10.62252138]
[1731867687007,4.3003,232.54,232.47,14.92402138]
[1731867687208,4.3003,232.54,232.49,10.62252138]
[1731867688510,4.51906462,232.56,232.49,10.12252138]
[1731867692038,4.299,232.61,232.55,10.62252138]
[1731867692209,4.299,232.61,232.56,10.62252138]
[1731867692841,0.09367462,232.6,232.56,10.62252138]
[1731867693137,6.6281,232.67,232.59,10.62252138]
[1731867693310,4.2979,232.67,232.62,10.62252138]
[1731867693506,30.0,232.63,232.6,10.62252138]
[1731867694141,4.39157462,232.67,232.6,10.62252138]
[1731867694933,4.2979,232.67,232.6,10.62252138]
[1731867695634,10.716196,232.66,232.58,10.62252138]
[1731867695937,0.09367462,232.66,232.58,10.62252138]
[1731867696117,4.2983,232.65,232.6,10.62252138]
[1731867696313,17.3709,232.72,232.64,10.62252138]
[1731867696314,4.2971,232.71,232.64,10.62252138]
[1731867696522,10.62252138,232.68,232.59,10.62252138]
[1731867696831,10.62252138,232.68,232.61,10.62252138]
[1731867697013,10.62252138,232.68,232.59,10.62252138]
[1731867697218,0.09367462,232.67,232.59,10.62252138]
[1731867697527,0.09367462,232.65,232.57,10.62252138]
[1731867698236,5.18729835,232.67,232.61,10.62252138]
[1731867698410,4.2975,232.69,232.63,10.62252138]
[1731867698615,10.62252138,232.68,232.57,10.7494]
[1731867698813,0.09367462,232.65,232.58,10.62252138]
[1731867699435,0.09367462,232.62,232.54,10.62252138]
[1731867700240,4.2987,232.63,232.58,10.62252138]
[1731867700640,10.62252138,232.67,232.58,10.62252138]
[1731867700940,4.2983,232.65,232.58,10.62252138]
[1731867701115,4.2983,232.65,232.6,10.62252138]
[1731867701319,10.62252138,232.71,232.62,10.62252138]
[1731867701751,10.62252138,232.71,232.64,10.62252138]
[1731867701926,4.2971,232.71,232.64,10.62252138]
[1731867702249,0.09367462,232.7,232.64,10.62252138]
[1731867703433,4.39077462,232.71,232.64,10.62252138]
[1731867704224,4.2971,232.71,232.66,10.62252138]
[1731867704828,19.4652,232.73,232.68,10.62252138]
[1731867705052,4.2963,232.76,232.7,10.62252138]
[1731867705346,25.8738,232.78,232.72,10.62252138]
[1731867705526,30.0,232.73,232.72,10.62252138]
[1731867705840,30.0,232.73,232.7,10.62252138]
[1731867706057,0.09367462,232.76,232.7,10.62252138]
[1731867706626,19.5757,232.78,232.7,10.62252138]
[1731867706846,0.09367462,232.77,232.72,10.62252138]
[1731867707249,4.2959,232.78,232.72,10.62252138]
[1731867707542,4.2955,232.8,232.72,10.62252138]
[1731867707848,4.2955,232.8,232.74,10.62252138]
[1731867708039,4.2955,232.8,232.76,10.62252138]
[1731867708536,0.09367462,232.79,232.72,10.62252138]
[1731867708725,0.09367462,232.77,232.7,10.62252138]
[1731867708930,5.28097297,232.77,232.7,10.62252138]
[1731867709141,30.0,232.76,232.7,10.62252138]
[1731867709650,34.2963,232.76,232.72,10.62252138]
[1731867709857,34.2963,232.76,232.7,10.62252138]
[1731867710650,4.2963,232.76,232.7,10.62252138]
[1731867711332,4.2959,232.78,232.7,10.62252138]
[1731867711732,0.09367462,232.74,232.66,10.62252138]
[1731867712057,15.80981973,232.73,232.64,10.62252138]
[1731867712360,10.62252138,232.69,232.59,22.813]
[1731867712563,15.80981973,232.69,232.6,10.62252138]
[1731867712935,0.09367462,232.68,232.6,10.62252138]
[1731867713141,0.09367462,232.66,232.58,10.62252138]
[1731867713347,4.2983,232.65,232.58,10.62252138]
[1731867720562,0.09367462,232.64,232.58,10.62252138]
[1731867720766,0.09367462,232.64,232.56,10.62252138]
[1731867721260,0.09367462,232.64,232.58,10.62252138]
[1731867722158,4.298,232.67,232.62,10.62252138]
[1731867723364,4.39097462,232.7,232.62,10.62252138]
[1731867723539,0.09367462,232.68,232.62,10.62252138]
[1731867724656,4.2979,232.67,232.62,10.62252138]
[1731867726140,22.1353,232.72,232.66,10.62252138]
[1731867726337,4.2969,232.73,232.66,10.62252138]
[1731867726572,4.2965,232.75,232.7,10.62252138]
[1731867727339,15.7208,232.77,232.7,10.62252138]
[1731867727340,20.017,232.77,232.7,10.62252138]
[1731867727867,4.2958,232.79,232.74,10.62252138]
[1731867728160,0.09367462,232.74,232.66,10.62252138]
[1731867728353,0.09367462,232.72,232.66,10.62252138]
[1731867728538,4.2971,232.71,232.66,10.62252138]
[1731867728738,4.2971,232.71,232.64,10.62252138]
[1731867729562,4.2971,232.71,232.66,10.62252138]
[1731867730071,4.296,232.77,232.68,10.62252138]
[1731867730449,0.09367462,232.76,232.71,10.62252138]
[1731867730757,4.296,232.77,232.71,10.62252138]
[1731867730949,10.716196,232.76,232.67,10.62252138]
[1731867731145,10.62252138,232.72,232.65,10.62252138]
[1731867731566,0.09367462,232.73,232.65,10.62252138]
[1731867731953,0.21916462,232.73,232.65,10.62252138]
[1731867732153,10.62252138,232.76,232.67,10.62252138]
[1731867732360,10.74801138,232.76,232.67,10.62252138]
[1731867732558,10.74801138,232.76,232.63,10.62252138]
[1731867732559,10.62252138,232.72,232.63,10.62252138]
[1731867732760,4.39077462,232.71,232.63,10.62252138]
[1731867732960,4.39077462,232.71,232.65,10.62252138]
[1731867733153,4.2969,232.73,232.65,10.62252138]
[1731867733353,4.2969,232.73,232.67,10.62252138]
[1731867733571,0.21916462,232.72,232.67,10.62252138]
[1731867734148,10.841686,232.72,232.62,10.7468]
[1731867734461,10.841686,232.72,232.58,22.2575]
[1731867734462,0.21916462,232.69,232.61,10.62252138]
[1731867734960,0.09367462,232.67,232.59,10.62252138]
[1731867735747,4.2981,232.66,232.59,10.62252138]
[1731867736157,0.34465462,232.65,232.57,10.62252138]
[1731867737071,4.2981,232.66,232.59,10.62252138]
[1731867737448,0.25098,232.69,232.61,10.62252138]
[1731867737648,0.25098,232.69,232.63,10.62252138]
[1731867737649,4.2978,232.68,232.63,10.62252138]
[1731867737954,0.09367462,232.67,232.63,10.62252138]
[1731867738870,0.21916462,232.67,232.61,10.62252138]
[1731867739651,0.21916462,232.67,232.59,10.62252138]
[1731867740774,4.2981,232.66,232.59,10.62252138]
[1731867742675,4.2978,232.68,232.63,10.62252138]
[1731867742852,4.2978,232.68,232.65,10.62252138]
[1731867743269,0.09367462,232.67,232.61,10.62252138]
[1731867743568,4.2978,232.68,232.63,10.62252138]
[1731867743769,4.2978,232.68,232.65,10.62252138]
[1731867745155,4.51646462,232.7,232.63,10.62252138]
[1731867745466,4.39097462,232.7,232.63,10.62252138]
[1731867745970,4.2971,232.72,232.67,10.62252138]
[1731867746178,4.2971,232.72,232.65,10.62252138]
[1731867746554,4.2971,232.72,232.67,10.62252138]
[1731867747378,10.74801138,232.7,232.63,10.62252138]
[1731867747660,0.21916462,232.64,232.56,10.62252138]
[1731867748574,16.89492138,232.67,232.58,10.62252138]
[1731867748876,4.2981,232.66,232.62,10.62252138]
[1731867749060,4.2981,232.66,232.64,10.62252138]
[1731867749978,10.62252138,232.72,232.43,26.71191718]
[1731867749979,21.61777462,232.61,232.43,26.71191718]
[1731867750176,21.61777462,232.61,232.41,10.62252138]
[1731867750177,0.09367462,232.49,232.41,10.62252138]
[1731867750375,10.62252138,232.5,232.41,10.62252138]
[1731867750764,0.09367462,232.49,232.41,10.62252138]
[1731867751277,10.62252138,232.48,232.38,15.0612]
[1731867751477,10.62252138,232.48,232.39,10.62252138]
[1731867751977,4.52076462,232.47,232.39,10.62252138]
[1731867752383,0.09367462,232.45,232.38,10.758]
[1731867752570,0.21916462,232.45,232.37,10.62252138]
[1731867753363,10.62252138,232.44,232.37,10.62252138]
[1731867753695,14.92472138,232.44,232.37,10.62252138]
[1731867754178,0.09367462,232.41,232.33,10.7605]
[1731867754358,0.12549,232.43,232.35,10.62252138]
[1731867754560,0.12549,232.43,232.37,10.62252138]
[1731867755277,0.09367462,232.42,232.37,10.62252138]
[1731867755585,4.39627462,232.42,232.37,10.62252138]
[1731867755777,0.12549,232.41,232.35,10.62252138]
[1731867756084,0.21916462,232.4,232.35,10.62252138]
[1731867756659,0.09367462,232.36,232.31,10.62252138]
[1731867756879,0.21916462,232.36,232.29,10.62252138]
[1731867757265,0.21916462,232.34,232.29,10.62252138]
[1731867757865,4.52326462,232.34,232.29,10.62252138]
[1731867758280,0.25098,232.33,232.29,10.62252138]
[1731867759186,0.09367462,232.32,232.25,4.3056]
[1731867759359,0.21916462,232.32,232.28,10.62252138]
[1731867759970,0.21916462,232.32,232.23,4.306]
[1731867760172,4.52366462,232.32,232.27,10.62252138]
[1731867762189,4.52366462,232.32,232.23,4.306]
[1731867762485,4.52366462,232.32,232.22,10.7653]
[1731867762695,0.21916462,232.3,232.22,10.7653]
[1731867762983,0.21916462,232.28,232.25,10.62252138]
[1731867763187,0.21916462,232.28,232.2,4.3066]
[1731867763371,0.21916462,232.28,232.24,10.62252138]
[1731867763782,0.21916462,232.28,232.2,4.3066]
[1731867763974,0.21916462,232.28,232.24,10.62252138]
[1731867764167,4.55628,232.27,232.17,10.7678]
[1731867764372,4.55628,232.27,232.2,10.62252138]
[1731867764585,34.64995462,232.27,232.2,10.62252138]
[1731867765300,58.42683862,232.27,232.2,10.62252138]
[1731867767788,34.64995462,232.27,232.22,10.62252138]
[1731867768087,34.64995462,232.27,232.24,10.62252138]
[1731867768294,30.12549,232.27,232.24,10.62252138]
[1731867768792,4.305,232.29,232.24,10.62252138]
[1731867768989,10.62252138,232.32,232.24,10.62252138]
[1731867769162,4.3045,232.31,232.24,10.62252138]
[1731867770270,0.25098,232.3,232.24,10.62252138]
[1731867770471,0.21916462,232.29,232.24,10.62252138]
[1731867771469,4.52406462,232.29,232.24,10.62252138]
[1731867773798,4.43039,232.29,232.24,10.62252138]
[1731867774495,34.74406,232.28,232.19,10.62252138]
[1731867775682,34.64995462,232.27,232.19,10.62252138]
[1731867775880,58.42683862,232.27,232.19,10.62252138]
[1731867776590,58.42683862,232.27,232.15,10.7686]
[1731867776591,4.64995462,232.27,232.21,10.62252138]
[1731867776792,4.39897462,232.27,232.21,10.62252138]
[1731867777872,4.39897462,232.27,232.19,10.62252138]
[1731867778297,4.64995462,232.27,232.19,10.62252138]
[1731867778495,4.64995462,232.27,232.21,10.62252138]
[1731867779796,34.64995462,232.27,232.21,10.62252138]
[1731867780181,34.64995462,232.27,232.19,10.62252138]
[1731867784103,0.09367462,232.27,232.21,14.92872138]
[1731867784309,0.25098,232.29,232.21,14.92872138]
[1731867785093,0.09367462,232.28,232.21,14.92872138]
[1731867785381,30.12549,232.29,232.23,10.62252138]
[1731867785797,0.09367462,232.28,232.23,10.62252138]
[1731867786510,4.305,232.29,232.23,10.62252138]
[1731867791383,4.305,232.29,232.23,14.92852138]
[1731867792003,4.305,232.29,232.23,10.62252138]
[1731867792583,10.62252138,232.32,232.23,10.62252138]
[1731867792584,4.39817462,232.31,232.23,10.62252138]
[1731867792806,4.39817462,232.31,232.23,14.92852138]
[1731867793181,0.12549,232.33,232.27,10.62252138]
[1731867793399,4.42969,232.33,232.27,10.62252138]
[1731867793910,0.09367462,232.32,232.26,0.4779129]
[1731867794609,0.09367462,232.3,232.26,0.4779129]
[1731867794787,0.21916462,232.3,232.26,0.4779129]
[1731867795405,4.3045,232.31,232.26,0.4779129]
[1731867795986,0.09367462,232.3,232.26,0.4779129]
[1731867797210,4.3049,232.3,232.26,0.4779129]
[1731867797600,10.7596,232.36,232.29,6.8351289]
[1731867797601,0.12549,232.34,232.29,6.8351289]
[1731867797792,0.25098,232.34,232.29,6.8351289]
[1731867798308,0.09367462,232.33,232.29,6.8351289]
[1731867798699,6.8351289,232.37,232.29,6.8351289]
[1731867798895,4.3038,232.35,232.29,6.8351289]
[1731867799092,0.09367462,232.34,232.29,6.8351289]
[1731867799316,0.09367462,232.34,232.31,6.8351289]
[1731867799820,4.3036,232.37,232.31,6.8351289]
[1731867800118,4.3036,232.37,232.33,6.8351289]
[1731867800615,4.3032,232.39,232.33,6.8351289]
[1731867803490,0.09367462,232.36,232.29,16.1929]
[1731867803691,0.21916462,232.34,232.28,6.8351289]
[1731867804819,0.09367462,232.34,232.26,4.7833129]
[1731867805200,0.21916462,232.34,232.28,6.8351289]
[1731867805596,4.3042,232.33,232.28,6.8351289]
[1731867805804,0.09367462,232.32,232.26,0.4779129]
[1731867806028,0.09367462,232.32,232.26,7.3130418]
[1731867806394,6.92880352,232.27,232.26,0.4779129]
[1731867807321,7.17978352,232.27,232.26,0.4779129]
[1731867807705,11.48508352,232.27,232.26,0.4779129]
[1731867808427,34.64995462,232.27,232.26,0.4779129]
[1731867808603,45.33771455,232.27,232.26,0.4779129]
[1731867808915,69.11459855,232.27,232.26,0.4779129]
[1731867809223,45.33771455,232.27,232.26,0.4779129]
[1731867810799,45.33771455,232.27,232.17,10.66567283]
[1731867810800,0.09367462,232.25,232.17,10.66567283]
[1731867811002,30.09367462,232.25,232.17,10.66567283]
[1731867811614,34.39947462,232.25,232.17,14.97267283]
[1731867812730,4.39947462,232.25,232.17,14.97267283]
[1731867813022,4.39947462,232.25,232.17,10.66567283]
[1731867813229,15.08723455,232.25,232.17,10.66567283]
[1731867814210,0.09367462,232.23,232.17,10.66567283]
[1731867814514,10.78143455,232.23,232.15,10.68775993]
[1731867815214,0.09367462,232.21,232.15,10.68775993]
[1731867816441,4.43149,232.24,232.17,10.68775993]
[1731867816824,0.09367462,232.23,232.17,10.68775993]
[1731867817407,162.4,232.33,232.15,4.3074]
[1731867817408,10.68775993,232.29,232.21,10.68775993]
[1731867818321,0.09367462,232.28,232.21,10.68775993]
[1731867818534,0.09367462,232.28,232.15,15.0762]
[1731867818535,0.09367462,232.26,232.22,10.68775993]
[1731867818746,0.09367462,232.26,232.22,10.18775993]
[1731867819112,4.3052,232.28,232.22,10.18775993]
[1731867819329,4.3049,232.3,232.25,10.68775993]
[1731867820337,10.68775993,232.35,232.27,10.68775993]
[1731867820637,0.09367462,232.33,232.27,10.68775993]
[1731867821019,4.3041,232.34,232.19,0.1]
[1731867821347,4.3041,232.34,232.27,10.68775993]
[1731867822028,0.09367462,232.33,232.27,10.68775993]
[1731867822540,0.09367462,232.33,232.25,10.68775993]
[1731867822541,11.03241455,232.33,232.25,10.68775993]
[1731867824139,0.09367462,232.31,232.25,10.68775993]
[1731867824439,0.21916462,232.31,232.25,10.68775993]
[1731867825946,0.09367462,232.29,232.25,10.68775993]
[1731867826437,4.3034,232.37,232.27,10.68775993]
[1731867826634,4.3034,232.37,232.29,10.68775993]
[1731867827251,10.68775993,232.36,232.29,10.68775993]
[1731867827452,0.09367462,232.35,232.29,10.68775993]
[1731867827617,4.304,232.34,232.29,10.68775993]
[1731867827935,0.09367462,232.33,232.27,10.68775993]
[1731867828136,4.304,232.34,232.29,10.68775993]
[1731867828629,0.09367462,232.33,232.29,10.68775993]
[1731867830138,0.25098,232.37,232.29,10.68775993]
[1731867830343,6.83118405,232.39,232.31,6.83118405]
[1731867831046,0.09367462,232.38,232.31,6.83118405]
[1731867831425,4.39697462,232.38,232.31,11.13568405]
[1731867831750,6.83118405,232.4,232.33,6.83118405]
[1731867832638,11.13408405,232.4,232.33,11.13528405]
[1731867833823,6.83118405,232.42,232.33,11.13528405]
[1731867834055,0.09367462,232.41,232.33,11.13528405]
[1731867834234,11.13348405,232.44,232.35,6.83118405]
[1731867834424,0.09367462,232.43,232.35,6.83118405]
[1731867834627,11.13348405,232.44,232.35,6.83118405]
[1731867835123,0.09367462,232.43,232.35,6.83118405]
[1731867835324,4.39607462,232.43,232.35,11.13488405]
[1731867836836,4.3021,232.45,232.37,6.83118405]
[1731867837244,0.09367462,232.44,232.37,11.13448405]
[1731867838252,6.83118405,232.42,232.34,10.76]
[1731867838552,6.83118405,232.42,232.34,17.59118405]
[1731867838853,4.68142007,232.44,232.35,6.83118405]
[1731867839054,4.68142007,232.44,232.37,6.83118405]
[1731867839435,0.09367462,232.42,232.37,6.83118405]
[1731867840363,8.89004545,232.44,232.37,6.83118405]
[1731867841659,4.39617462,232.43,232.35,6.83118405]
[1731867841964,4.39617462,232.43,232.34,15.0639]
[1731867841965,6.83118405,232.42,232.34,10.76]
[1731867842541,4.39617462,232.43,232.35,6.83118405]
[1731867844251,4.3025,232.43,232.37,6.83118405]
[1731867844459,4.79273869,232.46,232.37,6.83118405]
[1731867844460,0.09367462,232.45,232.37,6.83118405]
[1731867844756,4.39577462,232.45,232.37,6.83118405]
[1731867845736,4.39577462,232.45,232.37,11.13458405]
[1731867846659,4.79273869,232.46,232.39,6.83118405]
[1731867846857,4.3017,232.47,232.41,6.83118405]
[1731867847665,4.3017,232.47,232.39,6.83118405]
[1731867847851,6.83118405,232.47,232.39,11.13418405]
[1731867849249,4.3018,232.46,232.39,6.83118405]
[1731867850344,4.301,232.5,232.41,6.83118405]
[1731867850547,4.301,232.5,232.43,6.83118405]
[1731867851356,4.301,232.5,232.43,11.13348405]
[1731867851560,15.6471,232.52,232.49,6.83118405]
[1731867851764,15.6471,232.52,232.44,27.3247362]
[1731867851765,15.1493,232.58,232.51,6.83118405]
[1731867851935,15.1493,232.58,232.52,6.83118405]
[1731867851936,4.3001,232.56,232.52,6.83118405]
[1731867852141,19.4489,232.58,232.53,6.83118405]
[1731867852446,4.2989,232.62,232.57,6.83118405]
[1731867852744,11.13008405,232.62,232.47,0.1]
[1731867852946,6.83118405,232.61,232.54,6.83118405]
[1731867853175,0.09367462,232.6,232.54,6.83118405]
[1731867853461,4.299,232.61,232.56,6.83118405]
[1731867853634,6.83118405,232.63,232.56,6.83118405]
[1731867853833,0.09367462,232.62,232.56,6.83118405]
[1731867854060,6.83118405,232.63,232.56,6.83118405]
[1731867854363,15.1885,232.64,232.57,6.83118405]
[1731867854543,4.2987,232.63,232.57,6.83118405]
[1731867855853,0.09367462,232.62,232.57,6.83118405]
[1731867856253,4.2987,232.63,232.58,10.64928532]
[1731867856463,15.1885,232.64,232.58,10.64928532]
[1731867856646,4.2979,232.67,232.53,0.1]
[1731867856840,4.2979,232.67,232.64,10.64928532]
[1731867857045,4.2979,232.67,232.6,10.64928532]
[1731867857742,0.09367462,232.66,232.58,10.64928532]
[1731867858067,0.09367462,232.64,232.56,10.64928532]
[1731867859353,10.64928532,232.67,232.6,10.64928532]
[1731867859549,14.94728532,232.67,232.6,10.64928532]
[1731867859761,0.09367462,232.66,232.6,10.64928532]
[1731867860148,4.2983,232.65,232.6,10.64928532]
[1731867861543,16.2471,232.69,232.6,10.64928532]
[1731867861743,16.2471,232.69,232.62,10.64928532]
[1731867861744,4.2977,232.68,232.62,10.64928532]
[1731867862956,4.2977,232.68,232.6,10.64928532]
[1731867864052,10.64928532,232.61,232.52,10.7515]
[1731867864247,0.34465462,232.6,232.53,10.64928532]
[1731867864577,0.09367462,232.54,232.46,6.1532]
[1731867864784,10.64928532,232.52,232.44,10.64928532]
[1731867865143,0.09367462,232.51,232.44,10.64928532]
[1731867865350,0.09367462,232.49,232.4,10.64928532]
[1731867865780,0.09367462,232.45,232.38,10.64928532]
[1731867866246,10.64928532,232.48,232.38,10.64928532]
[1731867866449,10.64928532,232.48,232.4,10.64928532]
[1731867866666,0.09367462,232.47,232.4,10.64928532]
[1731867867451,0.09367462,232.47,232.38,10.64928532]
[1731867867765,4.3018,232.46,232.38,10.64928532]
[1731867869274,4.3018,232.46,232.4,10.64928532]
[1731867871671,10.64928532,232.44,232.36,10.64928532]
[1731867871865,10.64928532,232.44,232.3,33.3823]
[1731867871866,0.09367462,232.41,232.3,33.3823]
[1731867872056,0.34465462,232.43,232.3,33.3823]
[1731867872057,4.3032,232.38,232.3,21.41098532]
[1731867875367,0.09367462,232.39,232.3,21.41098532]
[1731867875368,0.09367462,232.39,232.32,10.64928532]
[1731867875875,4.39677462,232.39,232.32,10.64928532]
[1731867876374,0.25098,232.43,232.3,15.0664]
[1731867876375,4.3027,232.41,232.34,10.64928532]
[1731867876552,10.64928532,232.42,232.34,10.64928532]
[1731867876553,14.95198532,232.42,232.34,10.64928532]
[1731867877063,0.09367462,232.41,232.34,10.64928532]
[1731867877886,4.39657462,232.41,232.34,10.64928532]
[1731867878380,0.09367462,232.39,232.32,10.64928532]
[1731867879775,4.3025,232.42,232.36,10.64928532]
[1731867880365,26.89638532,232.44,232.36,10.64928532]
[1731867880563,20.5494,232.44,232.38,10.64928532]
[1731867880875,0.09367462,232.43,232.38,10.64928532]
[1731867881468,4.39607462,232.43,232.38,10.64928532]
[1731867885464,4.39607462,232.43,232.37,10.64928532]
[1731867886365,4.39607462,232.43,232.38,10.64928532]
[1731867886671,4.39607462,232.43,232.39,10.64928532]
[1731867887052,4.39607462,232.43,232.39,10.14928532]
[1731867887257,4.39607462,232.43,232.38,10.64928532]
[1731867888156,10.64928532,232.4,232.33,10.64928532]
[1731867888464,10.74295994,232.39,232.32,10.64928532]
[1731867888665,0.09367462,232.39,232.33,10.64928532]
[1731867889083,10.74295994,232.41,232.34,10.64928532]
[1731867889294,0.09367462,232.39,232.34,10.64928532]
[1731867890071,0.09367462,232.39,232.33,10.64928532]
[1731867890390,4.3032,232.38,232.33,10.64928532]
[1731867892788,4.3032,232.38,232.32,10.64928532]
[1731867895387,4.3032,232.38,232.33,10.64928532]
[1731867896385,4.3032,232.38,232.33,6.83000289]
[1731867900275,4.3018,232.46,232.37,6.83000289]
[1731867900585,11.13180289,232.46,232.39,6.83000289]
[1731867900901,6.83000289,232.42,232.33,4.3041]
[1731867901273,6.83000289,232.43,232.36,6.83000289]
[1731867901487,11.13240289,232.43,232.36,11.13360289]
[1731867902994,0.09367462,232.44,232.37,6.83000289]
[1731867903304,0.09367462,232.44,232.38,6.83000289]
[1731867904074,4.3023,232.43,232.38,6.83000289]
[1731867905499,4.3023,232.43,232.37,6.83000289]
[1731867906076,0.09367462,232.42,232.33,10.7605]
[1731867906274,6.83000289,232.39,232.31,6.83000289]
[1731867909402,11.13320289,232.39,232.32,6.83000289]
[1731867910177,6.83000289,232.37,232.29,10.7622]
[1731867910504,6.83000289,232.37,232.3,6.83000289]
[1731867911387,6.83000289,232.37,232.31,4.3045]
[1731867911983,11.13340289,232.37,232.31,4.3045]
[1731867912690,11.13340289,232.37,232.27,4.3051]
[1731867912691,6.92367751,232.36,232.27,4.3051]
[1731867912897,6.83000289,232.28,232.16,4.3073]
[1731867913078,6.83000289,232.28,232.2,6.83000289]
[1731867913281,6.83000289,232.27,232.16,15.0757]
[1731867913497,6.83000289,232.27,232.18,6.83000289]
[1731867913700,6.83000289,232.25,232.18,6.83000289]
[1731867914305,10.68549944,232.25,232.17,10.68549944]
[1731867914675,10.68549944,232.25,232.18,4.307]
[1731867915293,15.2749,232.28,232.21,10.68549944]
[1731867915691,10.68549944,232.27,232.19,10.68549944]
[1731867916309,10.68549944,232.27,232.2,23.776884]
[1731867916487,19.5801,232.28,232.21,10.68549944]
[1731867916899,10.68549944,232.27,232.2,4.3066]
[1731867917102,10.68549944,232.27,232.2,14.99209944]
[1731867917788,14.99089944,232.27,232.2,10.68549944]
[1731867918091,14.99089944,232.27,232.18,25.75989944]
[1731867919600,14.99089944,232.27,232.18,21.45299944]
[1731867919805,10.68549944,232.22,232.13,15.0773]
[1731867920109,10.68549944,232.22,232.14,10.68549944]
[1731867920286,10.68549944,232.22,232.13,15.0773]
[1731867920486,17.07428944,232.26,232.18,10.68549944]
[1731867920687,17.07428944,232.26,232.13,15.0773]
[1731867920907,10.68549944,232.24,232.16,10.68549944]
[1731867922191,4.306,232.23,232.16,10.68549944]
[1731867922509,10.90466406,232.22,232.13,21.45499944]
[1731867922900,10.90466406,232.22,232.11,10.68549944]
[1731867922901,10.68549944,232.18,232.11,10.68549944]
[1731867923813,10.68549944,232.18,232.09,10.68549944]
[1731867923814,26.59879944,232.18,232.09,10.68549944]
[1731867924016,4.3071,232.17,232.09,10.68549944]
[1731867924390,10.81098944,232.16,232.08,10.7719]
[1731867925289,10.68549944,232.16,232.08,10.7719]
[1731867925490,10.68549944,232.16,232.08,15.0807]
[1731867926089,10.68549944,232.16,232.09,10.68549944]
[1731867926285,14.99289944,232.16,232.09,10.68549944]
[1731867928009,14.99289944,232.16,232.08,10.7719]
[1731867928520,10.68549944,232.12,232.05,1.005]
[1731867928815,10.68549944,232.12,232.05,5.3143]
[1731867931308,10.68549944,232.12,232.05,15.99979944]
[1731867933130,21.25669944,232.13,232.05,15.99979944]
[1731867934224,6.8457181,232.12,232.05,12.1600181]
[1731867936202,11.1538181,232.12,232.05,12.1600181]
[1731867937820,11.1538181,232.12,232.05,5.3143]
[1731867937821,6.8457181,232.11,232.05,5.3143]
[1731867937999,6.8457181,232.09,232.05,1.005]
[1731867938201,6.8457181,232.06,232.05,1.005]
[1731867938603,7.06488272,232.06,232.05,1.005]
[1731867940108,11.37408272,232.06,232.05,1.005]
[1731867941400,41.37408272,232.06,232.05,1.005]
[1731867942629,11.37408272,232.06,232.05,1.005]
[1731867943128,4.52836462,232.06,232.05,1.005]